fUSD/lending_fUSD_20240714
["ID","MTS","AMOUNT","RATE_DAILY","PERIOD"]
[332042661,1720942237144,-500.0,0.00013698,2]
[332042662,1720942237154,-604.88,0.00013698,2]
[332042663,1720942237163,-2131.66,0.00013698,2]
[332042664,1720942237172,-500.0,0.00013698,2]
[332042665,1720942237182,-500.0,0.00013698,2]
[332042666,1720942237192,-500.0,0.00013698,2]
[332042667,1720942237201,-950.53,0.00013698,2]
[332042668,1720942237211,-500.0,0.00013698,2]
[332042669,1720942237220,-1580.61,0.00013698,2]
[332042670,1720942237229,-500.0,0.00013698,2]
[332042671,1720942237239,-642.41,0.00013698,2]
[332042672,1720942237249,-500.0,0.00013698,2]
[332042673,1720942237259,-1000.0,0.00013698,2]
[332042674,1720942237268,-500.0,0.00013698,2]
[332042675,1720942237278,-500.0,0.00013698,2]
[332042676,1720942237287,-500.0,0.00013698,2]
[332042677,1720942237297,-500.0,0.00013698,2]
[332042678,1720942237306,-500.0,0.00013698,2]
[332042679,1720942237316,-500.0,0.00013698,2]
[332042680,1720942237326,-500.0,0.00013698,2]
[332042681,1720942237335,-1001.3,0.00013698,2]
[332042682,1720942237345,-500.0,0.00013698,2]
[332042683,1720942237354,-500.0,0.00013698,2]
[332042684,1720942237364,-500.0,0.00013698,2]
[332042685,1720942237373,-602.55,0.00013698,2]
[332042686,1720942237383,-695.43,0.00013698,2]
[332042687,1720942237393,-500.0,0.00013698,2]
[332042688,1720942237403,-500.0,0.00013698,2]
[332042689,1720942237413,-500.0,0.00013698,2]
[332042690,1720942237423,-1382.1,0.00013698,2]
[332042691,1720942237432,-500.0,0.00013698,2]
[332042692,1720942237662,-500.0,0.00013698,2]
[332042693,1720942237672,-500.0,0.00013698,2]
[332042694,1720942237682,-1950.35,0.00013698,2]
[332042695,1720942237691,-500.0,0.00013698,2]
[332042696,1720942237702,-500.0,0.00013698,2]
[332042697,1720942237712,-768.25,0.00013698,2]
[332042698,1720942237721,-500.0,0.00013698,2]
[332042699,1720942237730,-500.0,0.00013698,2]
[332042700,1720942237741,-500.0,0.00013698,2]
[332042701,1720942237752,-1121.28,0.00013698,2]
[332042702,1720942237762,-500.0,0.00013698,2]
[332042703,1720942237772,-870.82,0.00013698,2]
[332042704,1720942237781,-500.0,0.00013698,2]
[332042705,1720942237792,-500.0,0.00013698,2]
[332042706,1720942237804,-500.0,0.00013698,2]
[332042707,1720942237815,-770.79,0.00013698,2]
[332042708,1720942237825,-500.0,0.00013698,2]
[332042709,1720942237835,-500.0,0.00013698,2]
[332042710,1720942237845,-500.0,0.00013698,2]
[332042711,1720942237854,-690.16,0.00013698,2]
[332042712,1720942237864,-500.0,0.00013698,2]
[332042713,1720942237873,-942.52,0.00013698,2]
[332042714,1720942237884,-819.36,0.00013698,2]
[332042715,1720942237894,-1183.77,0.00013698,2]
[332042716,1720942237905,-500.0,0.00013698,2]
[332042718,1720942237915,-714.85,0.00013698,2]
[332042720,1720942237925,-500.0,0.00013698,2]
[332042721,1720942237935,-514.79,0.00013698,2]
[332042722,1720942237947,-500.0,0.00013698,2]
[332042723,1720942237958,-594.24,0.00013698,2]
[332042724,1720942237967,-500.0,0.00013698,2]
[332042726,1720942237976,-500.0,0.00013698,2]
[332042727,1720942237985,-500.0,0.00013698,2]
[332042729,1720942237995,-500.0,0.00013698,2]
[332042730,1720942238004,-500.0,0.00013698,2]
[332042731,1720942238018,-500.0,0.00013698,2]
[332042732,1720942238027,-500.0,0.00013698,2]
[332042733,1720942238037,-1262.53,0.00013698,2]
[332042734,1720942238047,-500.0,0.00013698,2]
[332042736,1720942238057,-500.0,0.00013698,2]
[332042738,1720942238066,-1193.02,0.00013698,2]
[332042739,1720942238075,-500.0,0.00013698,2]
[332042740,1720942238085,-1329.4,0.00013698,2]
[332042741,1720942238095,-660.98,0.00013698,2]
[332042742,1720942238107,-500.0,0.00013698,2]
[332042743,1720942238116,-500.0,0.00013698,2]
[332042744,1720942238127,-500.0,0.00013698,2]
[332042745,1720942238137,-500.0,0.00013698,2]
[332042746,1720942238147,-500.0,0.00013698,2]
[332042747,1720942238157,-500.0,0.00013698,2]
[332042748,1720942238167,-500.0,0.00013698,2]
[332042749,1720942238177,-2306.15,0.00013698,2]
[332042750,1720942238187,-500.0,0.00013698,2]
[332042751,1720942238197,-715.02,0.00013698,2]
[332042752,1720942238207,-500.0,0.00013698,2]
[332042753,1720942238217,-500.0,0.00013698,2]
[332042754,1720942238227,-500.0,0.00013698,2]
[332042755,1720942238237,-563.16,0.00013698,2]
[332042756,1720942238246,-500.0,0.00013698,2]
[332042757,1720942238256,-500.0,0.00013698,2]
[332042758,1720942238266,-730.84,0.00013698,2]
[332042759,1720942238278,-500.0,0.00013698,2]
[332042760,1720942238287,-1739.63,0.00013698,2]
[332042761,1720942238297,-500.0,0.00013698,2]
[332042762,1720942238307,-500.0,0.00013698,2]
[332042763,1720942238317,-500.0,0.00013698,2]
[332042764,1720942238327,-500.0,0.00013698,2]
[332042765,1720942238338,-1612.72,0.00013698,2]
[332042766,1720942238348,-500.0,0.00013698,2]
[332042767,1720942238358,-500.0,0.00013698,2]
[332042768,1720942238367,-500.0,0.00013698,2]
[332042769,1720942238378,-1718.95,0.00013698,2]
[332042770,1720942238388,-20000.0,0.00013698,2]
[332042771,1720942238398,-842.66,0.00013698,2]
[332042772,1720942238408,-500.0,0.00013698,2]
[332042773,1720942238418,-500.0,0.00013698,2]
[332042774,1720942238428,-1745.81,0.00013698,2]
[332042775,1720942238438,-500.0,0.00013698,2]
[332042776,1720942238447,-1239.42,0.00013698,2]
[332042777,1720942238458,-500.0,0.00013698,2]
[332042778,1720942238468,-500.0,0.00013698,2]
[332042779,1720942238477,-500.0,0.00013698,2]
[332042780,1720942238488,-500.0,0.00013698,2]
[332042781,1720942238498,-500.0,0.00013698,2]
[332042782,1720942238510,-1550.79,0.00013698,2]
[332042783,1720942238522,-500.0,0.00013698,2]
[332042784,1720942238534,-1218.97,0.00013698,2]
[332042785,1720942238545,-500.0,0.00013698,2]
[332042786,1720942238557,-186.33526371,0.00013698,2]
[332042787,1720942238567,-500.0,0.00013698,2]
[332042788,1720942238577,-500.0,0.00013698,2]
[332042789,1720942238588,-500.0,0.00013698,2]
[332042790,1720942238597,-500.0,0.00013698,2]
[332042791,1720942238607,-500.0,0.00013698,2]
[332042792,1720942238616,-869.73,0.00013698,2]
[332042793,1720942238626,-500.0,0.00013698,2]
[332042794,1720942238635,-1130.31,0.00013698,2]
[332042795,1720942238645,-628.18,0.00013698,2]
[332042796,1720942238654,-500.0,0.00013698,2]
[332042798,1720942238664,-500.0,0.00013698,2]
[332042800,1720942238673,-1557.09,0.00013698,2]
[332042801,1720942238682,-500.0,0.00013698,2]
[332042803,1720942238691,-500.0,0.00013698,2]
[332042805,1720942238700,-500.0,0.00013698,2]
[332042807,1720942238710,-210.74088191,0.00013698,2]
[332042809,1720942238719,-500.0,0.00013698,2]
[332042811,1720942238728,-500.0,0.00013698,2]
[332042813,1720942238738,-500.33,0.00013698,2]
[332042815,1720942238747,-500.0,0.00013698,2]
[332042817,1720942238757,-500.0,0.00013698,2]
[332042819,1720942238767,-500.0,0.00013698,2]
[332042821,1720942238776,-846.37,0.00013698,2]
[332042823,1720942238787,-500.0,0.00013698,2]
[332042825,1720942238797,-500.0,0.00013698,2]
[332042827,1720942238807,-500.0,0.00013698,2]
[332042829,1720942238818,-500.0,0.00013698,2]
[332042831,1720942238829,-500.0,0.00013698,2]
[332042833,1720942238839,-2196.01,0.00013698,2]
[332042835,1720942238850,-500.0,0.00013698,2]
[332042837,1720942238861,-500.0,0.00013698,2]
[332042839,1720942238873,-500.0,0.00013698,2]
[332042841,1720942238883,-500.0,0.00013698,2]
[332042843,1720942238893,-500.0,0.00013698,2]
[332042845,1720942238904,-500.0,0.00013698,2]
[332042847,1720942238914,-500.0,0.00013698,2]
[332042850,1720942238927,-500.0,0.00013698,2]
[332042852,1720942238938,-500.0,0.00013698,2]
[332042854,1720942238949,-500.0,0.00013698,2]
[332042856,1720942238960,-947.73,0.00013698,2]
[332042858,1720942238969,-500.0,0.00013698,2]
[332042860,1720942238980,-500.0,0.00013698,2]
[332042862,1720942238991,-500.0,0.00013698,2]
[332042864,1720942239000,-704.59,0.00013698,2]
[332042866,1720942239016,-650.94,0.00013698,2]
[332042868,1720942239026,-500.0,0.00013698,2]
[332042870,1720942239038,-500.0,0.00013698,2]
[332042872,1720942239047,-500.0,0.00013698,2]
[332042874,1720942239057,-500.0,0.00013698,2]
[332042876,1720942239066,-500.0,0.00013698,2]
[332042877,1720942239076,-500.0,0.00013698,2]
[332042879,1720942239087,-500.0,0.00013698,2]
[332042881,1720942239097,-500.0,0.00013698,2]
[332042883,1720942239106,-500.0,0.00013698,2]
[332042885,1720942239116,-591.67,0.00013698,2]
[332042887,1720942239125,-500.0,0.00013698,2]
[332042889,1720942239134,-500.0,0.00013698,2]
[332042891,1720942239143,-500.0,0.00013698,2]
[332042893,1720942239152,-500.0,0.00013698,2]
[332042895,1720942239163,-594.85599685,0.00013698,2]
[332042897,1720942239172,-500.0,0.00013698,2]
[332042899,1720942239182,-500.0,0.00013698,2]
[332042901,1720942239192,-500.12,0.00013698,2]
[332042903,1720942239201,-1562.18,0.00013698,2]
[332042904,1720942239211,-500.0,0.00013698,2]
[332042906,1720942239221,-500.0,0.00013698,2]
[332042908,1720942239232,-500.0,0.00013698,2]
[332042910,1720942239243,-500.0,0.00013698,2]
[332042912,1720942239254,-500.0,0.00013698,2]
[332042914,1720942239263,-500.0,0.00013698,2]
[332042916,1720942239273,-500.0,0.00013698,2]
[332042918,1720942239282,-500.0,0.00013698,2]
[332042920,1720942239292,-500.0,0.00013698,2]
[332042922,1720942239303,-291.91709853,0.00013698,2]
[332042924,1720942239313,-500.0,0.00013698,2]
[332042926,1720942239323,-500.0,0.00013698,2]
[332042928,1720942239332,-500.0,0.00013698,2]
[332042930,1720942239342,-500.0,0.00013698,2]
[332042932,1720942239351,-500.0,0.00013698,2]
[332042934,1720942239362,-2244.93,0.00013698,2]
[332042936,1720942239373,-500.0,0.00013698,2]
[332042938,1720942239383,-625.0,0.00013698,2]
[332042940,1720942239393,-500.0,0.00013698,2]
[332042942,1720942239403,-574.54,0.00013698,2]
[332042944,1720942239413,-500.0,0.00013698,2]
[332042946,1720942239424,-500.0,0.00013698,2]
[332042948,1720942239435,-500.0,0.00013698,2]
[332042950,1720942239445,-1359.02,0.00013698,2]
[332042952,1720942239455,-500.0,0.00013698,2]
[332042954,1720942239466,-500.0,0.00013698,2]
[332042956,1720942239476,-500.0,0.00013698,2]
[332042957,1720942239485,-500.0,0.00013698,2]
[332042958,1720942239495,-500.0,0.00013698,2]
[332042959,1720942239504,-813.43,0.00013698,2]
[332042960,1720942239514,-682.17,0.00013698,2]
[332042961,1720942239523,-500.0,0.00013698,2]
[332042962,1720942239533,-828.19,0.00013698,2]
[332042963,1720942239543,-1373.71,0.00013698,2]
[332042964,1720942239553,-707.5,0.00013698,2]
[332042965,1720942239562,-607.25,0.00013698,2]
[332042967,1720942239572,-500.0,0.00013698,2]
[332042969,1720942239582,-1024.42,0.00013698,2]
[332042971,1720942239591,-500.0,0.00013698,2]
[332042973,1720942239601,-500.0,0.00013698,2]
[332042975,1720942239611,-500.0,0.00013698,2]
[332042977,1720942239621,-500.0,0.00013698,2]
[332042979,1720942239630,-789.23,0.00013698,2]
[332042981,1720942239640,-500.0,0.00013698,2]
[332042983,1720942239650,-500.0,0.00013698,2]
[332042985,1720942239659,-500.0,0.00013698,2]
[332042987,1720942239669,-805.03,0.00013698,2]
[332042989,1720942239678,-565.93,0.00013698,2]
[332042991,1720942239688,-578.63,0.00013698,2]
[332042993,1720942239697,-1277.4,0.00013698,2]
[332042995,1720942239707,-763.16,0.00013698,2]
[332042997,1720942239718,-500.0,0.00013698,2]
[332042999,1720942239728,-500.0,0.00013698,2]
[332043001,1720942239739,-1223.49,0.00013698,2]
[332043003,1720942239748,-997.24,0.00013698,2]
[332043004,1720942239758,-1223.05,0.00013698,2]
[332043006,1720942239768,-500.0,0.00013698,2]
[332043008,1720942239779,-693.59,0.00013698,2]
[332043011,1720942239789,-500.0,0.00013698,2]
[332043012,1720942239798,-500.0,0.00013698,2]
[332043015,1720942239809,-500.0,0.00013698,2]
[332043017,1720942239818,-686.17,0.00013698,2]
[332043018,1720942239828,-500.0,0.00013698,2]
[332043020,1720942239839,-500.0,0.00013698,2]
[332043022,1720942239848,-500.0,0.00013698,2]
[332043024,1720942239859,-1084.92,0.00013698,2]
[332043027,1720942239870,-880.57,0.00013698,2]
[332043028,1720942239879,-500.0,0.00013698,2]
[332043030,1720942239889,-1246.78,0.00013698,2]
[332043032,1720942239899,-500.0,0.00013698,2]
[332043034,1720942239909,-500.0,0.00013698,2]
[332043036,1720942239919,-517.28,0.00013698,2]
[332043038,1720942239929,-573.84,0.00013698,2]
[332043040,1720942239939,-500.0,0.00013698,2]
[332043042,1720942239949,-1357.43,0.00013698,2]
[332043044,1720942239959,-500.0,0.00013698,2]
[332043046,1720942239969,-500.0,0.00013698,2]
[332043047,1720942239978,-500.0,0.00013698,2]
[332043049,1720942239987,-500.0,0.00013698,2]
[332043051,1720942239997,-654.56,0.00013698,2]
[332043053,1720942240009,-500.0,0.00013698,2]
[332043055,1720942240020,-500.0,0.00013698,2]
[332043057,1720942240030,-500.0,0.00013698,2]
[332043059,1720942240039,-1144.62,0.00013698,2]
[332043061,1720942240050,-500.0,0.00013698,2]
[332043063,1720942240060,-500.0,0.00013698,2]
[332043065,1720942240070,-500.0,0.00013698,2]
[332043067,1720942240081,-1255.22,0.00013698,2]
[332043078,1720942240165,-500.0,0.00013698,2]
[332043080,1720942240175,-1662.21,0.00013698,2]
[332043082,1720942240186,-500.0,0.00013698,2]
[332043084,1720942240195,-500.0,0.00013698,2]
[332043086,1720942240205,-500.0,0.00013698,2]
[332043088,1720942240217,-500.0,0.00013698,2]
[332043090,1720942240226,-500.0,0.00013698,2]
[332043092,1720942240235,-500.0,0.00013698,2]
[332043093,1720942240246,-500.0,0.00013698,2]
[332043095,1720942240256,-1657.58,0.00013698,2]
[332043097,1720942240265,-500.0,0.00013698,2]
[332043099,1720942240275,-500.0,0.00013698,2]
[332043101,1720942240285,-1018.78,0.00013698,2]
[332043103,1720942240294,-500.0,0.00013698,2]
[332043105,1720942240303,-390.89496157,0.00013698,2]
[332043107,1720942240313,-500.0,0.00013698,2]
[332043109,1720942240323,-1745.09,0.00013698,2]
[332043111,1720942240332,-2326.8,0.00013698,2]
[332043113,1720942240341,-500.0,0.00013698,2]
[332043115,1720942240351,-786.63,0.00013698,2]
[332043117,1720942240360,-1039.56,0.00013698,2]
[332043118,1720942240369,-500.0,0.00013698,2]
[332043120,1720942240379,-500.0,0.00013698,2]
[332043122,1720942240389,-500.0,0.00013698,2]
[332043124,1720942240398,-500.0,0.00013698,2]
[332043126,1720942240407,-1675.85,0.00013698,2]
[332043128,1720942240416,-611.27,0.00013698,2]
[332043130,1720942240426,-1222.98,0.00013698,2]
[332043132,1720942240435,-500.0,0.00013698,2]
[332043134,1720942240444,-500.0,0.00013698,2]
[332043136,1720942240453,-862.3,0.00013698,2]
[332043138,1720942240463,-214.78537959,0.00013698,2]
[332043140,1720942240472,-708.13,0.00013698,2]
[332043142,1720942240481,-500.0,0.00013698,2]
[332043144,1720942240491,-500.0,0.00013698,2]
[332043146,1720942240500,-500.0,0.00013698,2]
[332043148,1720942240510,-500.0,0.00013698,2]
[332043150,1720942240519,-539.51,0.00013698,2]
[332043152,1720942240528,-331.89197762,0.00013698,2]
[332043158,1720942240585,-168.10802238,0.00013698,2]
[332043160,1720942240595,-500.0,0.00013698,2]
[332043162,1720942240605,-500.0,0.00013698,2]
[332043164,1720942240614,-500.0,0.00013698,2]
[332043166,1720942240624,-594.42,0.00013698,2]
[332043168,1720942240633,-500.0,0.00013698,2]
[332043170,1720942240642,-1167.02,0.00013698,2]
[332043172,1720942240651,-629.91,0.00013698,2]
[332043174,1720942240660,-500.0,0.00013698,2]
[332043175,1720942240669,-606.95,0.00013698,2]
[332043177,1720942240678,-500.0,0.00013698,2]
[332043179,1720942240690,-500.0,0.00013698,2]
[332043181,1720942240699,-500.0,0.00013698,2]
[332043183,1720942240708,-601.13499807,0.00013698,2]
[332043186,1720942240723,-749.56500193,0.00013698,2]
[332043188,1720942240734,-699.01,0.00013698,2]
[332043190,1720942240743,-500.0,0.00013698,2]
[332043192,1720942240752,-500.0,0.00013698,2]
[332043194,1720942240762,-500.0,0.00013698,2]
[332043196,1720942240772,-500.0,0.00013698,2]
[332043198,1720942240781,-500.0,0.00013698,2]
[332043200,1720942240790,-500.0,0.00013698,2]
[332043201,1720942240799,-569.64,0.00013698,2]
[332043203,1720942240808,-500.0,0.00013698,2]
[332043205,1720942240818,-500.0,0.00013698,2]
[332043207,1720942240827,-616.95,0.00013698,2]
[332043209,1720942240837,-500.0,0.00013698,2]
[332043211,1720942240846,-858.57,0.00013698,2]
[332043214,1720942240855,-500.0,0.00013698,2]
[332043216,1720942240864,-1377.67,0.00013698,2]
[332043217,1720942240873,-500.0,0.00013698,2]
[332043219,1720942240883,-500.0,0.00013698,2]
[332043221,1720942240892,-500.0,0.00013698,2]
[332043223,1720942240901,-500.0,0.00013698,2]
[332043225,1720942240910,-541.42,0.00013698,2]
[332043227,1720942240919,-500.0,0.00013698,2]
[332043229,1720942240928,-500.0,0.00013698,2]
[332043231,1720942240938,-500.0,0.00013698,2]
[332043233,1720942240947,-500.0,0.00013698,2]
[332043235,1720942240957,-500.0,0.00013698,2]
[332043237,1720942240967,-500.0,0.00013698,2]
[332043239,1720942240976,-940.75,0.00013698,2]
[332043241,1720942240985,-500.0,0.00013698,2]
[332043243,1720942240994,-500.0,0.00013698,2]
[332043245,1720942241003,-1064.23,0.00013698,2]
[332043247,1720942241017,-1877.29,0.00013698,2]
[332043249,1720942241026,-500.0,0.00013698,2]
[332043251,1720942241035,-643.31,0.00013698,2]
[332043253,1720942241044,-1900.55,0.00013698,2]
[332043255,1720942241054,-500.0,0.00013698,2]
[332043257,1720942241063,-500.0,0.00013698,2]
[332043259,1720942241073,-1065.31,0.00013698,2]
[332043260,1720942241082,-500.0,0.00013698,2]
[332043262,1720942241092,-917.89,0.00013698,2]
[332043264,1720942241102,-500.0,0.00013698,2]
[332043266,1720942241111,-1854.76,0.00013698,2]
[332043268,1720942241120,-500.0,0.00013698,2]
[332043270,1720942241129,-500.0,0.00013698,2]
[332043271,1720942241139,-571.03,0.00013698,2]
[332043273,1720942241148,-500.0,0.00013698,2]
[332043275,1720942241158,-500.0,0.00013698,2]
[332043277,1720942241168,-500.0,0.00013698,2]
[332043279,1720942241178,-500.0,0.00013698,2]
[332043281,1720942241188,-500.0,0.00013698,2]
[332043283,1720942241198,-546.93,0.00013698,2]
[332043285,1720942241208,-500.0,0.00013698,2]
[332043287,1720942241217,-1033.31,0.00013698,2]
[332043289,1720942241227,-500.0,0.00013698,2]
[332043291,1720942241237,-1443.94,0.00013698,2]
[332043293,1720942241247,-500.0,0.00013698,2]
[332043295,1720942241256,-500.0,0.00013698,2]
[332043297,1720942241265,-500.0,0.00013698,2]
[332043299,1720942241275,-500.0,0.00013698,2]
[332043301,1720942241283,-500.0,0.00013698,2]
[332043303,1720942241293,-452.81969571,0.00013698,2]
[332043304,1720942241302,-500.0,0.00013698,2]
[332043306,1720942241312,-500.0,0.00013698,2]
[332043308,1720942241321,-500.0,0.00013698,2]
[332043310,1720942241330,-500.0,0.00013698,2]
[332043312,1720942241340,-500.0,0.00013698,2]
[332043314,1720942241349,-939.48,0.00013698,2]
[332043316,1720942241359,-690.83,0.00013698,2]
[332043318,1720942241368,-1434.02,0.00013698,2]
[332043320,1720942241378,-500.0,0.00013698,2]
[332043322,1720942241387,-507.26,0.00013698,2]
[332043324,1720942241396,-500.0,0.00013698,2]
[332043326,1720942241405,-500.0,0.00013698,2]
[332043328,1720942241415,-500.0,0.00013698,2]
[332043330,1720942241424,-500.0,0.00013698,2]
[332043331,1720942241435,-500.0,0.00013698,2]
[332043332,1720942241444,-500.0,0.00013698,2]
[332043333,1720942241456,-500.0,0.00013698,2]
[332043334,1720942241467,-500.0,0.00013698,2]
[332043335,1720942241476,-758.17,0.00013698,2]
[332043336,1720942241487,-500.0,0.00013698,2]
[332043337,1720942241496,-500.0,0.00013698,2]
[332043339,1720942241509,-500.0,0.00013698,2]
[332043341,1720942241519,-500.0,0.00013698,2]
[332043343,1720942241529,-500.0,0.00013698,2]
[332043345,1720942241539,-667.95,0.00013698,2]
[332043347,1720942241549,-500.0,0.00013698,2]
[332043349,1720942241561,-500.0,0.00013698,2]
[332043351,1720942241570,-500.0,0.00013698,2]
[332043353,1720942241582,-500.0,0.00013698,2]
[332043355,1720942241591,-500.0,0.00013698,2]
[332043357,1720942241601,-656.83,0.00013698,2]
[332043359,1720942241610,-500.0,0.00013698,2]
[332043361,1720942241619,-500.0,0.00013698,2]
[332043363,1720942241628,-1121.81,0.00013698,2]
[332043365,1720942241638,-1360.96,0.00013698,2]
[332043367,1720942241647,-1333.12,0.00013698,2]
[332043369,1720942241656,-511.77433648,0.00013698,2]
[332043371,1720942241665,-1041.25,0.00013698,2]
[332043373,1720942241674,-500.0,0.00013698,2]
[332043375,1720942241684,-500.0,0.00013698,2]
[332043377,1720942241695,-500.0,0.00013698,2]
[332043379,1720942241706,-500.0,0.00013698,2]
[332043381,1720942241716,-1587.48,0.00013698,2]
[332043383,1720942241725,-721.7,0.00013698,2]
[332043385,1720942241735,-1189.67,0.00013698,2]
[332043387,1720942241744,-500.0,0.00013698,2]
[332043389,1720942241753,-180.38789569,0.00013698,2]
[332043391,1720942241763,-500.0,0.00013698,2]
[332043393,1720942241774,-500.0,0.00013698,2]
[332043395,1720942241784,-2094.35,0.00013698,2]
[332043397,1720942241794,-500.0,0.00013698,2]
[332043400,1720942241804,-500.0,0.00013698,2]
[332043402,1720942241815,-420.14776767,0.00013698,2]
[332043404,1720942241825,-500.0,0.00013698,2]
[332043406,1720942241835,-1454.73,0.00013698,2]
[332043408,1720942241845,-500.0,0.00013698,2]
[332043410,1720942241856,-500.0,0.00013698,2]
[332043412,1720942241866,-500.0,0.00013698,2]
[332043414,1720942241876,-1367.52,0.00013698,2]
[332043416,1720942241886,-500.0,0.00013698,2]
[332043418,1720942241896,-725.46,0.00013698,2]
[332043420,1720942241907,-564.4,0.00013698,2]
[332043422,1720942241916,-1181.0,0.00013698,2]
[332043425,1720942241928,-500.0,0.00013698,2]
[332043427,1720942241939,-500.0,0.00013698,2]
[332043429,1720942241950,-500.0,0.00013698,2]
[332043431,1720942241961,-500.0,0.00013698,2]
[332043433,1720942241970,-500.0,0.00013698,2]
[332043435,1720942241980,-500.0,0.00013698,2]
[332043437,1720942241991,-500.0,0.00013698,2]
[332043439,1720942242003,-500.0,0.00013698,2]
[332043442,1720942242018,-500.0,0.00013698,2]
[332043444,1720942242028,-500.0,0.00013698,2]
[332043446,1720942242038,-640.24,0.00013698,2]
[332043448,1720942242048,-500.0,0.00013698,2]
[332043450,1720942242058,-500.0,0.00013698,2]
[332043452,1720942242067,-500.0,0.00013698,2]
[332043454,1720942242076,-500.0,0.00013698,2]
[332043456,1720942242087,-662.78,0.00013698,2]
[332043457,1720942242096,-500.0,0.00013698,2]
[332043459,1720942242105,-500.0,0.00013698,2]
[332043461,1720942242116,-500.0,0.00013698,2]
[332043463,1720942242125,-687.37,0.00013698,2]
[332043465,1720942242134,-500.0,0.00013698,2]
[332043467,1720942242143,-500.0,0.00013698,2]
[332043469,1720942242153,-500.0,0.00013698,2]
[332043470,1720942242163,-500.0,0.00013698,2]
[332043472,1720942242173,-500.0,0.00013698,2]
[332043474,1720942242182,-1285.15,0.00013698,2]
[332043476,1720942242192,-1102.17,0.00013698,2]
[332043478,1720942242202,-500.0,0.00013698,2]
[332043480,1720942242212,-1226.59,0.00013698,2]
[332043482,1720942242220,-500.0,0.00013698,2]
[332043484,1720942242231,-500.0,0.00013698,2]
[332043486,1720942242241,-652.74,0.00013698,2]
[332043488,1720942242251,-500.0,0.00013698,2]
[332043489,1720942242260,-500.0,0.00013698,2]
[332043491,1720942242270,-500.0,0.00013698,2]
[332043493,1720942242279,-500.0,0.00013698,2]
[332043495,1720942242289,-529.57,0.00013698,2]
[332043497,1720942242299,-500.0,0.00013698,2]
[332043499,1720942242308,-500.0,0.00013698,2]
[332043501,1720942242318,-500.0,0.00013698,2]
[332043502,1720942242327,-807.57,0.00013698,2]
[332043504,1720942242337,-727.14,0.00013698,2]
[332043506,1720942242347,-500.0,0.00013698,2]
[332043508,1720942242357,-500.0,0.00013698,2]
[332043510,1720942242366,-500.0,0.00013698,2]
[332043512,1720942242377,-500.0,0.00013698,2]
[332043514,1720942242386,-1172.02,0.00013698,2]
[332043516,1720942242396,-500.0,0.00013698,2]
[332043518,1720942242407,-722.7,0.00013698,2]
[332043520,1720942242417,-500.0,0.00013698,2]
[332043522,1720942242427,-500.0,0.00013698,2]